[Event "Charlotte GM-A May 2022"]
[Site "Charlotte"]
[Date "2022.05.08"]
[Round "8.5"]
[White "Sheng, Joshua"]
[Black "Liang, Jason"]
[Result "0-1"]
[ECO "B12"]
[WhiteElo "2487"]
[BlackElo "2432"]
[Annotator "TA"]
[PlyCount "92"]
[EventDate "2022.05.04"]
[EventType "tourn"]
[EventCountry "USA"]
[SourceTitle "playchess.com"]
[Source "ChessBase"]
[SourceQuality "1"]
[TimeControl "5400+30"]

{[%evp 13,92,20,62,10,10,14,42,-26,24,22,22,20,33,25,45,45,55,46,58,49,60,28,37,22,42,18,28,8,13,0,0,0,0,0,0,0,0,0,0,0,0,0,0,0,0,-33,-41,-91,-52,-51,-43,-65,-8,-8,0,0,0,-172,-149,-158,-133,-118,-8,-8,-4,-16,0,0,0,-35,0,0,0,0,0,0,0,-558,-513,-622,-597]} 1. e4 {[%emt 0:02:56]} c6 {[%emt 0:00:08]} 2. d4 {[%emt 0:00:07]} d5 {[%emt 0:00:07]} 3. e5 {[%emt 0:00:01]} Bf5 {[%emt 0:00:09]} 4. Nf3 {[%emt 0:00:03]} e6 {[%emt 0:00:09]} 5. Be2 {[%emt 0:00:23]} c5 {[%emt 0:00:17]} 6. Be3 {[%emt 0:00:43]} Qb6 {[%emt 0:00:20]} 7. Nc3 {[%emt 0:00:19]} Nc6 {[%emt 1:32:50]} (7... Qxb2 8. Nb5 $16) 8. Na4 {[%emt 0:01:51] B12: Caro-Kann: Advance Variation.} (8. O-O $1 $14) 8... Qa5+ $11 {[%emt 0:00:00]} 9. c3 {[%emt 0:00:11][%cal Ra4c5]} c4 {[%emt 0:00:00]} 10. b4 {[%emt 0:00:34] [#] Nowadays more popular than 10.0-0.} (10. Nh4 $1 $14) 10... Qd8 {[%emt 0:00:00]} ({Black should play} 10... Bxb4 $1 11. g4 (11. cxb4 Nxb4 12. Nc5 Nc2+ 13. Kf1 Nxa1 $11) 11... Bg6 12. cxb4 Nxb4) 11. Nb2 {[%emt 0:02:17]} h6 {[%emt 0:00:00]} 12. O-O {[%emt 0:01:35]} Nge7 {[%emt 0:00:00]} 13. a4 {[%emt 0:06:27] [#]} a5 $146 {[%emt 0:00:00]} ({Predecessor:} 13... Bh7 14. Qd2 Nf5 15. Bd1 Rc8 16. Qe2 Be7 17. Bc2 O-O 18. Rae1 Bxb4 19. cxb4 Nxb4 {0-1 (41) Robson,R (2673)-Vazquez,G (2527) Chess.com INT 2020}) 14. b5 {[%emt 0:00:05]} Nb8 {[%emt 0:00:00]} 15. Nh4 {[%emt 0:05:11]} Be4 {[%emt 0:00:00]} 16. f3 {[%emt 0:00:55]} Bh7 {[%emt 0:00:00] And now ...g5 would win.} 17. g4 {[%emt 0:05:35]} g5 {[%emt 0:00:00]} 18. Ng2 {[%emt 0:00:07]} Ng6 {[%emt 0:00:00]} 19. Qd2 {[%emt 0:04:52]} Nd7 {[%emt 0:06:00]} 20. f4 {[%emt 0:08:26]} gxf4 {[%emt 0:00:00]} 21. Bxf4 {[%emt 0:58:22]} Nxf4 {[%emt 0:00:00]} 22. Qxf4 {[%emt 0:00:00][%csl Gf1][%cal Rf4f7]} Qe7 {[%emt 0:00:00]} 23. Bxc4 {[%emt 0:00:00][%cal Og2e3]} Rc8 {[%emt 0:00:00]} 24. Be2 {[%emt 0:00:00]} Rxc3 {[%emt 0:02:30]} 25. Rac1 {[%emt 0:00:00]} Rxc1 {[%emt 0:00:00]} 26. Rxc1 {[%emt 0:00:00]} Nb6 {[%emt 0:00:00] Inhibits Rc8+.} 27. Nd3 {[%emt 0:00:00]} Bg7 {[%emt 0:00:00]} 28. Nc5 {[%emt 0:00:00]} O-O {[%emt 0:00:00]} 29. Qd2 {[%emt 0:00:00]} Rc8 {[%emt 0:00:00][%cal Og7e5]} 30. Qxa5 {[%emt 0:00:00] [#]} (30. Qe3 $15) 30... Bxe5 $1 {[%emt 0:00:00]} 31. dxe5 {[%emt 0:00:00]} Rxc5 {[%emt 0:00:00]} 32. Qd2 {[%emt 0:00:00]} Rxc1+ {[%emt 0:00:00]} (32... Nxa4 $15 33. Qxh6 Nc3) 33. Qxc1 {[%emt 0:00:00]} Nxa4 {[%emt 0:00:00] Strongly threatening ...Qc5+.} 34. Qxh6 {[%emt 0:00:00]} Nc3 {[%emt 0:05:00]} 35. Qd2 {[%emt 0:07:00]} (35. Nf4 $1 $11) 35... Qc5+ {[%emt 0:00:00]} 36. Kf1 {[%emt 0:00:00]} Ne4 {[%csl Ge4][%cal Rc5f2] Against Qg5+. Black is much more active.} 37. Qe3 {Inhibits Qf2+.} d4 {[%emt 0:00:00]} ({Black should try} 37... Qc7 $17 38. Qf4 Qc3) 38. Qf4 Qc3 {[%emt 0:00:00]} 39. Ne1 {[%emt 0:00:00] Inhibits d3.} Qh3+ {[%emt 0:00:00]} 40. Kg1 Qh4 {[%emt 0:00:00]} 41. Ng2 Qd8 {[%emt 0:03:30] aiming for ...d3.} (41... Nc3 $5 {[%cal Rc3e2]} 42. Bf3 (42. Nxh4 $2 {perishes.} Nxe2+ 43. Kf2 Nxf4 $19) (42. Bd3 $2 Bxd3 43. Nxh4 Ne2+ 44. Kf2 Nxf4 $19) 42... Qd8 $17) 42. Bd3 {[%emt 0:00:00]} Ng5 $36 {[%emt 0:00:00][%mdl 2048] ( -> ...Nh3+). White is under pressure.} 43. Bxh7+ {[%emt 0:00:00]} Kxh7 {[%emt 0:00:00]} 44. Kf1 {h4 is the strong threat.} d3 {[%emt 0:00:00] White must now prevent ...d2.} 45. Ke1 {[%mdl 8192]} (45. Ne3 $11 {and White is okay.} Kg7 46. h4) 45... Qa5+ $19 {[%emt 0:00:00]} 46. Kd1 {[%emt 0:00:00] [#]} Qa2 $1 {[%emt 0:00:00] Weighted Error Value: White=0.46/Black=0.16 (very precise)} 0-1

[Event "Charlotte GM-A May 2022"]
[Site "Charlotte"]
[Date "2022.05.08"]
[Round "9.1"]
[White "Liang, Jason"]
[Black "Korley, Kassa"]
[Result "1/2-1/2"]
[ECO "D00"]
[WhiteElo "2432"]
[BlackElo "2413"]
[Annotator "TA"]
[PlyCount "63"]
[EventDate "2022.05.04"]
[EventType "tourn"]
[EventCountry "USA"]
[SourceTitle "playchess.com"]
[Source "ChessBase"]
[SourceQuality "1"]
[TimeControl "5400+30"]

{[%evp 9,63,0,8,-10,-13,-16,0,0,0,0,10,0,0,0,0,-6,-6,-8,-9,-19,0,-4,-5,-8,-2,0,-5,-13,0,0,7,7,26,6,12,13,5,0,0,-19,0,0,0,-12,13,7,16,0,0,0,20,0,30,0,33,0]} 1. d4 {[%emt 0:00:04]} Nf6 {[%emt 0:00:07]} 2. Nc3 {[%emt 0:00:09]} d5 {[%emt 0:00:36]} 3. Bf4 {[%emt 0:00:09]} g6 {[%emt 0:00:09]} 4. Nb5 {[%emt 0:01:15]} Na6 {[%emt 0:00:07][%cal Bb8a6,Ba6c7,Bc7e8,Be8d6][%mdl 32]} 5. e3 {[%emt 0:00:08]} Bg7 {[%emt 0:00:09]} 6. h3 {[%emt 0:00:14] D00: 1 d4 d5: Unusual lines.} O-O {[%emt 0:00:07]} 7. Nf3 {[%emt 0:01:31]} c6 {[%emt 0:05:41]} 8. Nc3 {[%emt 0:00:37] The position is equal.} Nc7 {[%emt 0:02:49]} 9. Be2 {[%emt 0:01:57]} b6 {[%emt 0:00:53]} 10. O-O {[%emt 0:02:52]} Bb7 {[%emt 0:00:02]} 11. a4 {[%emt 0:00:36]} a5 {[%emt 0:00:51] [#]} 12. Bh2 $146 {[%emt 0:04:16]} ({Predecessor:} 12. Rc1 Rc8 13. b3 Nd7 14. Bh2 Qe8 15. Ne5 Nxe5 16. dxe5 Ba6 17. Qd2 Qd7 18. Bxa6 Nxa6 {0-1 (129) Sadhwani,R (2616)-Swiercz,D (2656) Chess.com INT 2022}) 12... Nce8 {[%emt 0:04:31]} 13. Nb1 {[%emt 0:04:41]} Nd6 {[%emt 0:00:18]} 14. c3 {[%emt 0:01:02]} c5 {[%emt 0:04:13]} 15. Na3 {[%emt 0:01:30]} Nfe4 {[%emt 0:01:30]} 16. Rc1 {[%emt 0:01:23]} Rc8 {[%emt 0:01:11]} 17. Nd2 {[%emt 0:01:53]} Nxd2 {[%emt 0:09:14]} 18. Qxd2 {[%emt 0:00:06]} Qd7 {[%emt 0:01:11]} 19. b3 {[%emt 0:03:22]} Ne4 {[%emt 0:02:42]} 20. Qb2 {[%emt 0:00:23]} h5 {[%emt 0:02:48]} 21. Rfd1 {[%emt 0:01:24]} Rfd8 {[%emt 0:00:42]} 22. Nb5 {[%emt 0:02:39]} Bc6 {[%emt 0:01:24]} 23. Rc2 {[%emt 0:02:19]} Qb7 {[%emt 0:01:04]} 24. Rdc1 {[%emt 0:01:55]} Bd7 {[%emt 0:00:41]} 25. Rd1 {[%emt 0:11:10]} Bc6 {[%emt 0:06:39]} 26. Rcc1 {[%emt 0:04:00]} Bf6 {[%emt 0:06:42]} 27. Bd3 {[%emt 0:02:21]} Ng5 {[%emt 0:01:20]} 28. Bf1 {[%emt 0:02:32]} Ne4 {[%emt 0:00:28]} 29. Bd3 {[%emt 0:00:41]} Ng5 {[%emt 0:00:04]} 30. Qa3 {[%emt 0:01:25]} Bd7 {[%emt 0:05:35]} 31. Qb2 {[%emt 0:03:09]} Bc6 {[%emt 0:02:20]} 32. Qa3 {[%emt 0:06:41] Not much happened in this game.  Weighted Error Value: White=0.06 (flawless) /Black=0.06 (flawless)} 1/2-1/2

[Event "Charlotte GM-A May 2022"]
[Site "Charlotte"]
[Date "2022.05.08"]
[Round "9.3"]
[White "Belous, Vladimir"]
[Black "Williams, Justus"]
[Result "0-1"]
[ECO "A13"]
[WhiteElo "2525"]
[BlackElo "2417"]
[Annotator "TA"]
[PlyCount "94"]
[EventDate "2022.05.04"]
[EventType "tourn"]
[EventCountry "USA"]
[SourceTitle "playchess.com"]
[Source "ChessBase"]
[SourceQuality "1"]
[TimeControl "5400+30"]

{[%evp 11,94,22,32,32,29,-12,0,0,0,-39,-20,-85,-68,-65,-46,-101,-98,-94,-96,-85,-90,-273,-137,-139,-126,-396,-258,-741,-623,-799,-765,-757,-735,-1238,-1206,-1553,-1540,-1617,-1474,-1694,-1672,-1754,-1791,-1561,-1443,-1387,-1355,-29984,-29985,-29985,-29986,-29986,-29987,-29987,-29988,-29988,-29983,-29982,-29984,-29984,-29985,-29985,-29986,-29988,-29989,-29989,-29990,-29990,-29991,-29991,-29992,-29992,-29987,-29987,-29988,-29989,-29990,-29990,-29991,-29991,-29990,-29990,-29991,-29991,-29991]} 1. c4 {[%emt 0:02:36]} e6 {[%emt 0:01:39]} 2. Nf3 {[%emt 0:00:07]} d5 {[%emt 0:00:40]} 3. g3 {[%emt 0:02:36]} g6 {[%emt 0:01:16]} 4. Bg2 {[%emt 0:00:09]} Bg7 {[%emt 0:00:08]} 5. O-O {[%emt 0:00:05]} Ne7 {[%emt 0:00:29]} 6. d4 {[%emt 0:00:06]} Nbc6 {[%emt 0:01:21]} 7. Nc3 {[%emt 0:01:08] has lost popularity (7.e3). A13: English Opening: 1...e6.} O-O {[%emt 0:03:41]} 8. e4 {[%emt 0:11:03]} dxc4 {[%emt 0:04:39][%cal Rc6d4] [#]} 9. Bg5 $146 {[%emt 0:02:27] The position is equal.} ({Predecessor:} 9. Be3 a6 10. a4 b6 11. Qe2 Nxd4 12. Nxd4 Bxd4 13. e5 Ra7 14. Rfd1 c5 15. Ne4 {0-1 (44) Oparin,G (2652)-Rychkov,O (2407) Chess.com INT 2020}) 9... Re8 {[%emt 0:01:20][%cal Rc6d4]} 10. d5 {[%emt 0:04:53]} Nb4 {[%emt 0:01:14]} (10... Bxc3 $5 11. bxc3 exd5 $15) 11. Qd2 {[%emt 0:18:01]} (11. Nd2 $11) 11... exd5 {[%emt 0:05:56][%cal Be6d5,Bd5d4,Bd4c3][%mdl 32] ...f6 is the strong threat.} 12. a3 {[%emt 0:00:20]} d4 {[%emt 0:01:05]} 13. Rad1 {[%emt 0:02:03] [#]} ({White should play} 13. axb4 $15 dxc3 14. Qxd8 (14. bxc3 Qxd2 15. Bxd2 Nc6 $15) 14... Rxd8 15. bxc3) 13... Bg4 $1 $17 {[%emt 0:01:54] aiming for ...Bxf3.} 14. axb4 {[%emt 0:06:50][%cal Oc3d5]} dxc3 {[%emt 0:00:26][%mdl 64] Discovered Attack} (14... f6 15. Bf4 dxc3 16. Qxc3 $14) 15. Qf4 {[%emt 0:00:07]} Qc8 {[%emt 0:00:31]} 16. Ne5 $2 {[%emt 0:01:08]} (16. bxc3 $17 {was the only defense.} a5 17. h3 Bxf3 18. Bxf3) 16... Be6 {[%emt 0:01:01]} (16... Bxd1 17. Qxf7+ Kh8 18. Bf6 Bxf6 19. Qxf6+ Kg8 20. Rxd1 $14) ({Black should try} 16... Bxe5 $19 17. Qxe5 Bxd1 18. Qxc3 Qe6 $1 19. Rxd1 Rad8) 17. Bf6 {[%emt 0:05:04]} cxb2 {[%emt 0:04:53] Hoping for ...c5.} 18. Rd7 $2 {[%emt 0:00:31][%mdl 8192]} Bf8 {[%emt 0:04:09]} (18... Bxd7 19. Bxg7 Be6 20. Qh6 $15) 19. Bg5 $2 {[%emt 0:08:08]} (19. Rd2) 19... h6 {[%emt 0:04:04]} (19... Bxd7 $2 {leads to mate.} 20. Qxf7+ Kh8 21. Bf6+) 20. Bxh6 {[%emt 0:06:37]} Bxh6 {[%emt 0:00:12]} ({And not} 20... Bxd7 21. Qxf7+ Kh8 22. Qf6+ Kh7 23. Bxf8 Rxf8 24. Qxe7+ Kg8 25. Qg5 $11 (25. Nxd7 Rf7 $11)) 21. Qxh6 {[%emt 0:00:03]} Bxd7 {[%emt 0:00:42]} 22. f4 {[%emt 0:00:01] [#]} Nf5 $1 {[%emt 0:02:49]} 23. exf5 {[%emt 0:01:13]} (23. Qg5 Rxe5) 23... Bxf5 {[%emt 0:00:15]} 24. Nxf7 {[%emt 0:01:28]} Kxf7 {[%emt 0:01:09][%cal Bg8f7,Bf7f6,Bf6e5][%mdl 32]} 25. Bd5+ {[%emt 0:01:09] [#]} Re6 $1 {[%emt 0:01:27]} 26. Qh7+ {[%emt 0:01:34]} (26. Bxc4 Qh8) 26... Kf6 {[%emt 0:00:28]} 27. g4 {[%emt 0:02:21]} Bxg4 {[%emt 0:00:25]} 28. f5 {[%emt 0:00:19]} Bxf5 {[%emt 0:00:24]} 29. Rxf5+ {[%emt 0:00:06]} gxf5 {[%emt 0:00:26] Black mates.} 30. Qh6+ {[%emt 0:00:25]} Ke5 {[%emt 0:00:42]} 31. Qe3+ {[%emt 0:00:04]} Kxd5 {[%emt 0:00:11]} 32. Qc5+ {[%emt 0:00:07]} Ke4 {[%emt 0:00:03]} 33. Qxc4+ {[%emt 0:00:35]} Ke5 {[%emt 0:00:03]} 34. Qc3+ {[%emt 0:00:19]} Kd6 {[%emt 0:00:28]} 35. Qd4+ {[%emt 0:00:24]} Ke7 {[%emt 0:01:23]} 36. Qg7+ {[%emt 0:00:07] [#]} Kd8 $1 {[%emt 0:01:03]} 37. Qf8+ {[%emt 0:00:19]} Kd7 {[%emt 0:00:06]} 38. Qg7+ {[%emt 0:00:04]} Re7 {[%emt 0:00:17]} 39. Qd4+ {[%emt 0:00:05] [#]} Ke6 $1 {[%emt 0:00:24]} 40. Qc4+ {[%emt 0:00:13]} Kf6 {[%emt 0:00:15]} 41. Qh4+ {[%emt 0:00:07]} Kf7 {[%emt 0:00:09]} 42. Qh7+ {[%emt 0:00:11]} Ke6 {[%emt 0:00:06]} 43. Qg6+ {[%emt 0:00:08]} Kd5 {[%emt 0:00:09]} 44. Qg2+ {[%emt 0:00:18]} Re4 {[%emt 0:00:37]} 45. Qd2+ {[%emt 0:00:01]} Ke5 {[%emt 0:00:13]} 46. Qxb2+ {[%emt 0:00:15]} Ke6 {[%emt 0:00:01]} 47. Qb3+ {[%emt 0:00:08]} Kf6 {[%emt 0:00:11] Weighted Error Value: White=1.02/Black=0.19 (very precise)} 0-1